[Event "Titled Tuesday Blitz January 17 Late 2023"]
[White "Milikow, Yoav"]
[Black "Vega Gutierrez, Sabrina"]
[WhiteFideId "2822237"]
[BlackFideId "2219026"]
[WhiteElo "2394"]
[BlackElo "2377"]
[Result "1/2-1/2"]
[Round "09"]
[TimeControl "180+2"]
[Date "2023.01.17"]
[WhiteClock "0:00:50"]
[BlackClock "0:00:11"]

1. e4 {[%clk 0:02:57]}  c5 {[%clk 0:02:59]} 2. Nc3 {[%clk 0:02:53]}  e6 {[%clk 0:03:00]} 3. Nf3 {[%clk 0:02:51]}  Nc6 {[%clk 0:02:58]} 4. Bb5 {[%clk 0:02:32]}  Nge7 {[%clk 0:02:56]} 5. O-O {[%clk 0:02:28]}  Ng6 {[%clk 0:02:50]} 6. Re1 {[%clk 0:02:23]}  Be7 {[%clk 0:02:47]} 7. Bf1 {[%clk 0:02:15]}  O-O {[%clk 0:02:44]} 8. g3 {[%clk 0:02:06]}  d5 {[%clk 0:02:39]} 9. h4 {[%clk 0:02:02]}  d4 {[%clk 0:02:34]} 10. Nb1 {[%clk 0:02:00]}  e5 {[%clk 0:02:07]} 11. d3 {[%clk 0:02:01]}  Bg4 {[%clk 0:02:06]} 12. Be2 {[%clk 0:01:59]}  f5 {[%clk 0:01:39]} 13. Nfd2 {[%clk 0:01:14]}  Bxe2 {[%clk 0:01:37]} 14. Qxe2 {[%clk 0:01:15]}  f4 {[%clk 0:01:38]} 15. h5 {[%clk 0:01:15]}  Nh8 {[%clk 0:01:35]} 16. g4 {[%clk 0:01:14]}  Nf7 {[%clk 0:01:26]} 17. f3 {[%clk 0:01:14]}  b5 {[%clk 0:01:15]} 18. Kg2 {[%clk 0:01:14]}  Qd6 {[%clk 0:01:08]} 19. Rh1 {[%clk 0:01:13]}  h6 {[%clk 0:01:06]} 20. a4 {[%clk 0:01:09]}  a6 {[%clk 0:01:04]} 21. Na3 {[%clk 0:01:10]}  Rab8 {[%clk 0:01:01]} 22. Nb3 {[%clk 0:01:10]}  Ng5 {[%clk 0:00:58]} 23. Bd2 {[%clk 0:01:09]}  Rfc8 {[%clk 0:00:56]} 24. Be1 {[%clk 0:01:08]}  Nd8 {[%clk 0:00:49]} 25. Bd2 {[%clk 0:01:08]}  c4 {[%clk 0:00:46]} 26. dxc4 {[%clk 0:00:57]}  bxa4 {[%clk 0:00:30]} 27. Na5 {[%clk 0:00:57]}  Rxb2 {[%clk 0:00:28]} 28. Qd3 {[%clk 0:00:55]}  Nde6 {[%clk 0:00:26]} 29. Rhb1 {[%clk 0:00:51]}  Rcb8 {[%clk 0:00:24]} 30. Nb5 {[%clk 0:00:47]}  Rxb1 {[%clk 0:00:15]} 31. Nxd6 {[%clk 0:00:47]}  Rxa1 {[%clk 0:00:16]} 32. Nc6 {[%clk 0:00:47]}  Bxd6 {[%clk 0:00:12]} 33. Nxb8 {[%clk 0:00:47]}  Bxb8 {[%clk 0:00:12]} 34. c5 {[%clk 0:00:47]}  Bc7 {[%clk 0:00:11]} 35. Qxa6 {[%clk 0:00:47]}  Ra2 {[%clk 0:00:11]} 36. Qc4 {[%clk 0:00:46]}  Rb2 {[%clk 0:00:11]} 37. Qxa4 {[%clk 0:00:46]}  Nxc5 {[%clk 0:00:10]} 38. Qe8+ {[%clk 0:00:47]}  Kh7 {[%clk 0:00:10]} 39. Qg6+ {[%clk 0:00:47]}  Kg8 {[%clk 0:00:10]} 40. Qe8+ {[%clk 0:00:48]}  Kh7 {[%clk 0:00:10]} 41. Qg6+ {[%clk 0:00:49]}  Kg8 {[%clk 0:00:11]} 42. Qe8+ {[%clk 0:00:50]} 1/2-1/2


[Site "https://www.chess.com"]

[Event "Titled Tuesday Blitz January 17 Late 2023"]
[White "Aggelis, Nikolaos"]
[Black "AidenRchess"]
[WhiteFideId "4213220"]
[WhiteElo "2270"]
[BlackElo "2443"]
[Result "1-0"]
[Round "09"]
[TimeControl "180+2"]
[Date "2023.01.17"]
[WhiteClock "0:00:17"]
[BlackClock "0:00:25"]

1. b4 {[%clk 0:02:51]}  e5 {[%clk 0:02:59]} 2. Nf3 {[%clk 0:02:51]}  e4 {[%clk 0:02:55]} 3. Nd4 {[%clk 0:02:38]}  Bxb4 {[%clk 0:02:55]} 4. e3 {[%clk 0:02:38]}  d5 {[%clk 0:02:54]} 5. Bb2 {[%clk 0:02:37]}  Nf6 {[%clk 0:02:50]} 6. Be2 {[%clk 0:02:32]}  a6 {[%clk 0:02:49]} 7. O-O {[%clk 0:02:26]}  Bd6 {[%clk 0:02:49]} 8. c4 {[%clk 0:02:03]}  O-O {[%clk 0:02:46]} 9. Nc3 {[%clk 0:02:02]}  c5 {[%clk 0:02:45]} 10. Nb3 {[%clk 0:01:59]}  dxc4 {[%clk 0:02:42]} 11. Bxc4 {[%clk 0:01:57]}  b5 {[%clk 0:02:42]} 12. Be2 {[%clk 0:01:47]}  Bb7 {[%clk 0:02:41]} 13. Rc1 {[%clk 0:01:45]}  Qe7 {[%clk 0:02:40]} 14. a4 {[%clk 0:01:37]}  b4 {[%clk 0:02:37]} 15. Nb1 {[%clk 0:01:28]}  Nbd7 {[%clk 0:02:32]} 16. h3 {[%clk 0:01:22]}  Rac8 {[%clk 0:02:18]} 17. Na5 {[%clk 0:01:18]}  Ne5 {[%clk 0:02:16]} 18. Nxb7 {[%clk 0:01:05]}  Qxb7 {[%clk 0:02:16]} 19. d4 {[%clk 0:00:58]}  exd3 {[%clk 0:02:10]} 20. Bxd3 {[%clk 0:00:55]}  Rfd8 {[%clk 0:02:09]} 21. Bxe5 {[%clk 0:00:50]}  Bxe5 {[%clk 0:02:08]} 22. Qe2 {[%clk 0:00:50]}  Rd6 {[%clk 0:01:58]} 23. Nd2 {[%clk 0:00:48]}  Nd5 {[%clk 0:01:57]} 24. Nc4 {[%clk 0:00:41]}  Re6 {[%clk 0:01:56]} 25. Nxe5 {[%clk 0:00:38]}  Rxe5 {[%clk 0:01:50]} 26. Bxa6 {[%clk 0:00:39]}  Qc6 {[%clk 0:01:25]} 27. Bxc8 {[%clk 0:00:38]}  Qxc8 {[%clk 0:01:20]} 28. Qc4 {[%clk 0:00:39]}  h5 {[%clk 0:01:07]} 29. a5 {[%clk 0:00:34]}  Rg5 {[%clk 0:01:06]} 30. Qxc5 {[%clk 0:00:30]}  Qxh3 {[%clk 0:00:49]} 31. Qc8+ {[%clk 0:00:29]}  Qxc8 {[%clk 0:00:49]} 32. Rxc8+ {[%clk 0:00:29]}  Kh7 {[%clk 0:00:50]} 33. a6 {[%clk 0:00:29]}  Nb6 {[%clk 0:00:48]} 34. a7 {[%clk 0:00:26]}  Ra5 {[%clk 0:00:48]} 35. Rb8 {[%clk 0:00:25]}  Nd7 {[%clk 0:00:46]} 36. a8=Q {[%clk 0:00:24]}  Rxa8 {[%clk 0:00:45]} 37. Rxa8 {[%clk 0:00:25]}  b3 {[%clk 0:00:45]} 38. Rb1 {[%clk 0:00:21]}  Nb6 {[%clk 0:00:45]} 39. Ra6 {[%clk 0:00:19]}  Nd7 {[%clk 0:00:42]} 40. Rxb3 {[%clk 0:00:20]}  Nc5 {[%clk 0:00:43]} 41. Ra7 {[%clk 0:00:17]}  Nxb3 {[%clk 0:00:43]} 42. Rxf7 {[%clk 0:00:17]}  Nc5 {[%clk 0:00:43]} 43. Rf5 {[%clk 0:00:17]}  Ne6 {[%clk 0:00:41]} 44. Rxh5+ {[%clk 0:00:16]}  Kg6 {[%clk 0:00:42]} 45. Ra5 {[%clk 0:00:17]}  Kf7 {[%clk 0:00:41]} 46. f3 {[%clk 0:00:17]}  g5 {[%clk 0:00:42]} 47. g4 {[%clk 0:00:17]}  Kf6 {[%clk 0:00:40]} 48. Kf2 {[%clk 0:00:18]}  Nd8 {[%clk 0:00:37]} 49. Kg3 {[%clk 0:00:18]}  Kg6 {[%clk 0:00:37]} 50. Ra6+ {[%clk 0:00:18]}  Kg7 {[%clk 0:00:37]} 51. f4 {[%clk 0:00:18]}  gxf4+ {[%clk 0:00:37]} 52. exf4 {[%clk 0:00:19]}  Nf7 {[%clk 0:00:36]} 53. f5 {[%clk 0:00:19]}  Ne5 {[%clk 0:00:32]} 54. Kf4 {[%clk 0:00:19]}  Nd3+ {[%clk 0:00:32]} 55. Ke3 {[%clk 0:00:19]}  Ne5 {[%clk 0:00:30]} 56. g5 {[%clk 0:00:18]}  Nc4+ {[%clk 0:00:30]} 57. Kf4 {[%clk 0:00:18]}  Nb2 {[%clk 0:00:26]} 58. Ra7+ {[%clk 0:00:18]}  Kf8 {[%clk 0:00:26]} 59. g6 {[%clk 0:00:18]}  Nd3+ {[%clk 0:00:25]} 60. Kg5 {[%clk 0:00:18]}  Ne5 {[%clk 0:00:25]} 61. f6 {[%clk 0:00:18]}  Nc6 {[%clk 0:00:24]} 62. Ra8+ {[%clk 0:00:17]}  Nd8 {[%clk 0:00:25]} 63. Rxd8# {[%clk 0:00:17]} 1-0


[Site "https://www.chess.com"]

[Event "Titled Tuesday Blitz January 17 Late 2023"]
[White "Sreyas Payyappat"]
[Black "Olafsson, Helgi"]
[WhiteFideId "46674969"]
[BlackFideId "2300010"]
[WhiteElo "2076"]
[BlackElo "2491"]
[Result "1-0"]
[Round "09"]
[TimeControl "180+2"]
[Date "2023.01.17"]
[WhiteClock "0:00:15"]
[BlackClock "0:00:02"]

1. e4 {[%clk 0:03:00]}  c5 {[%clk 0:02:59]} 2. Nf3 {[%clk 0:02:59]}  e6 {[%clk 0:02:59]} 3. d4 {[%clk 0:02:55]}  cxd4 {[%clk 0:02:59]} 4. Nxd4 {[%clk 0:02:56]}  a6 {[%clk 0:03:00]} 5. Nc3 {[%clk 0:02:55]}  b5 {[%clk 0:02:59]} 6. Be3 {[%clk 0:02:53]}  Bb7 {[%clk 0:02:59]} 7. Bd3 {[%clk 0:02:51]}  d6 {[%clk 0:02:56]} 8. O-O {[%clk 0:02:48]}  Nf6 {[%clk 0:02:56]} 9. f3 {[%clk 0:02:44]}  Be7 {[%clk 0:02:54]} 10. Qd2 {[%clk 0:02:40]}  Nbd7 {[%clk 0:02:53]} 11. Nce2 {[%clk 0:02:36]}  Rc8 {[%clk 0:02:50]} 12. c3 {[%clk 0:02:36]}  Ne5 {[%clk 0:02:46]} 13. Ng3 {[%clk 0:02:27]}  O-O {[%clk 0:02:40]} 14. Rae1 {[%clk 0:02:23]}  d5 {[%clk 0:02:30]} 15. Bf4 {[%clk 0:02:08]}  Nxd3 {[%clk 0:02:24]} 16. Qxd3 {[%clk 0:02:09]}  dxe4 {[%clk 0:02:19]} 17. fxe4 {[%clk 0:02:07]}  Qb6 {[%clk 0:02:00]} 18. Kh1 {[%clk 0:01:59]}  Rcd8 {[%clk 0:01:50]} 19. Qf3 {[%clk 0:01:53]}  Nd7 {[%clk 0:01:36]} 20. Be3 {[%clk 0:01:46]}  Ne5 {[%clk 0:01:31]} 21. Qh5 {[%clk 0:01:34]}  Nc4 {[%clk 0:01:21]} 22. Ndf5 {[%clk 0:01:14]}  Nxe3 {[%clk 0:00:59]} 23. Nxe7+ {[%clk 0:01:12]}  Kh8 {[%clk 0:00:58]} 24. Rf3 {[%clk 0:01:06]}  Nc4 {[%clk 0:00:36]} 25. b3 {[%clk 0:00:20]}  Qc7 {[%clk 0:00:19]} 26. Ngf5 {[%clk 0:00:16]}  h6 {[%clk 0:00:02]} 27. Nxh6 {[%clk 0:00:15]} 1-0


[Site "https://www.chess.com"]

[Event "Titled Tuesday Blitz January 17 Late 2023"]
[White "Musovic, Armin"]
[Black "Mione, Dario"]
[WhiteFideId "939935"]
[BlackFideId "806625"]
[WhiteElo "2261"]
[BlackElo "2228"]
[Result "1-0"]
[Round "09"]
[TimeControl "180+2"]
[Date "2023.01.17"]
[WhiteClock "0:00:50"]
[BlackClock "0:00:03"]

1. a3 {[%clk 0:02:58]}  e5 {[%clk 0:02:58]} 2. Nc3 {[%clk 0:02:59]}  d5 {[%clk 0:02:58]} 3. d4 {[%clk 0:02:59]}  exd4 {[%clk 0:02:57]} 4. Qxd4 {[%clk 0:03:00]}  Nc6 {[%clk 0:02:57]} 5. Qxd5 {[%clk 0:03:00]}  Be6 {[%clk 0:02:57]} 6. Qxd8+ {[%clk 0:03:00]}  Rxd8 {[%clk 0:02:58]} 7. Nf3 {[%clk 0:02:58]}  Bg4 {[%clk 0:02:56]} 8. e3 {[%clk 0:02:57]}  Nf6 {[%clk 0:02:54]} 9. Bb5 {[%clk 0:02:57]}  Rd6 {[%clk 0:02:52]} 10. Nd4 {[%clk 0:02:56]}  a6 {[%clk 0:02:43]} 11. Bxc6+ {[%clk 0:02:56]}  bxc6 {[%clk 0:02:44]} 12. h3 {[%clk 0:02:56]}  Bh5 {[%clk 0:02:41]} 13. O-O {[%clk 0:02:53]}  Bg6 {[%clk 0:02:39]} 14. f4 {[%clk 0:02:42]}  c5 {[%clk 0:02:38]} 15. Nb3 {[%clk 0:02:32]}  Bxc2 {[%clk 0:02:35]} 16. Nxc5 {[%clk 0:02:33]}  Rc6 {[%clk 0:02:21]} 17. Rf2 {[%clk 0:02:30]}  Bg6 {[%clk 0:02:05]} 18. Nb3 {[%clk 0:02:23]}  Ne4 {[%clk 0:02:01]} 19. Nxe4 {[%clk 0:02:20]}  Bxe4 {[%clk 0:02:02]} 20. Nd4 {[%clk 0:02:16]}  Rb6 {[%clk 0:01:56]} 21. b4 {[%clk 0:02:16]}  Be7 {[%clk 0:01:49]} 22. Bd2 {[%clk 0:02:16]}  O-O {[%clk 0:01:48]} 23. Rc1 {[%clk 0:02:16]}  Rb7 {[%clk 0:01:37]} 24. Nc6 {[%clk 0:02:10]}  Bd6 {[%clk 0:01:26]} 25. Na5 {[%clk 0:02:05]}  Rbb8 {[%clk 0:01:17]} 26. Be1 {[%clk 0:01:49]}  Rfe8 {[%clk 0:01:13]} 27. Rd2 {[%clk 0:01:49]}  Re6 {[%clk 0:00:49]} 28. Rd4 {[%clk 0:01:40]}  Ba8 {[%clk 0:00:38]} 29. Bf2 {[%clk 0:01:38]}  h5 {[%clk 0:00:35]} 30. Nc4 {[%clk 0:01:30]}  Be7 {[%clk 0:00:28]} 31. Ne5 {[%clk 0:01:30]}  Bd6 {[%clk 0:00:27]} 32. Nd3 {[%clk 0:01:27]}  Rg6 {[%clk 0:00:20]} 33. g3 {[%clk 0:01:25]}  Re8 {[%clk 0:00:18]} 34. Kf1 {[%clk 0:01:18]}  Rge6 {[%clk 0:00:15]} 35. f5 {[%clk 0:01:10]}  Rxe3 {[%clk 0:00:14]} 36. Bxe3 {[%clk 0:01:09]}  Rxe3 {[%clk 0:00:15]} 37. Rxd6 {[%clk 0:01:00]}  cxd6 {[%clk 0:00:13]} 38. Rc8+ {[%clk 0:01:01]}  Kh7 {[%clk 0:00:13]} 39. Rxa8 {[%clk 0:01:01]}  Rxd3 {[%clk 0:00:13]} 40. Rxa6 {[%clk 0:01:02]}  Rxg3 {[%clk 0:00:11]} 41. h4 {[%clk 0:01:01]}  Rf3+ {[%clk 0:00:10]} 42. Ke2 {[%clk 0:01:01]}  Rxf5 {[%clk 0:00:10]} 43. Rxd6 {[%clk 0:01:01]}  Rf4 {[%clk 0:00:10]} 44. b5 {[%clk 0:01:01]}  Ra4 {[%clk 0:00:09]} 45. Ra6 {[%clk 0:00:59]}  Rxh4 {[%clk 0:00:07]} 46. b6 {[%clk 0:00:59]}  Rh2+ {[%clk 0:00:07]} 47. Kf3 {[%clk 0:00:59]}  Rb2 {[%clk 0:00:07]} 48. a4 {[%clk 0:00:59]}  h4 {[%clk 0:00:06]} 49. Ra5 {[%clk 0:00:50]}  Kh6 {[%clk 0:00:06]} 50. Rb5 {[%clk 0:00:50]}  Ra2 {[%clk 0:00:05]} 51. b7 {[%clk 0:00:50]}  Ra3+ {[%clk 0:00:03]} 52. Ke2 {[%clk 0:00:49]}  Ra2+ {[%clk 0:00:03]} 53. Kd1 {[%clk 0:00:49]}  Ra1+ {[%clk 0:00:03]} 54. Kc2 {[%clk 0:00:50]}  Ra2+ {[%clk 0:00:03]} 55. Kb3 {[%clk 0:00:50]} 1-0


[Site "https://www.chess.com"]

[Event "Titled Tuesday Blitz January 17 Late 2023"]
[White "Przybylski, Wojciech"]
[Black "Seletsky, Grigory"]
[WhiteFideId "1117599"]
[BlackFideId "14112191"]
[WhiteElo "2321"]
[BlackElo "2259"]
[Result "1-0"]
[Round "09"]
[TimeControl "180+2"]
[Date "2023.01.17"]
[WhiteClock "0:00:08"]
[BlackClock "0:00:01"]

1. e4 {[%clk 0:03:00]}  e6 {[%clk 0:02:59]} 2. d4 {[%clk 0:02:59]}  d5 {[%clk 0:03:00]} 3. Nc3 {[%clk 0:03:00]}  Nc6 {[%clk 0:02:59]} 4. Bb5 {[%clk 0:02:58]}  Nf6 {[%clk 0:02:53]} 5. e5 {[%clk 0:02:57]}  Nd7 {[%clk 0:02:53]} 6. f4 {[%clk 0:02:55]}  a6 {[%clk 0:02:52]} 7. Be2 {[%clk 0:02:51]}  g6 {[%clk 0:02:50]} 8. Nf3 {[%clk 0:02:50]}  h5 {[%clk 0:02:49]} 9. Be3 {[%clk 0:02:49]}  b6 {[%clk 0:02:49]} 10. O-O {[%clk 0:02:48]}  Bb7 {[%clk 0:02:49]} 11. a3 {[%clk 0:02:43]}  Ne7 {[%clk 0:02:48]} 12. b4 {[%clk 0:02:41]}  Nf5 {[%clk 0:02:47]} 13. Bf2 {[%clk 0:02:41]}  c5 {[%clk 0:02:47]} 14. bxc5 {[%clk 0:02:40]}  bxc5 {[%clk 0:02:45]} 15. Rb1 {[%clk 0:02:40]}  Bc6 {[%clk 0:02:44]} 16. Bd3 {[%clk 0:02:32]}  Nxd4 {[%clk 0:02:30]} 17. Nxd4 {[%clk 0:02:31]}  cxd4 {[%clk 0:02:31]} 18. Bxd4 {[%clk 0:02:32]}  Bc5 {[%clk 0:02:16]} 19. Ne2 {[%clk 0:02:30]}  Qe7 {[%clk 0:02:12]} 20. Kh1 {[%clk 0:02:12]}  Bxa3 {[%clk 0:02:04]} 21. c3 {[%clk 0:02:07]}  Bc5 {[%clk 0:01:58]} 22. Qd2 {[%clk 0:01:56]}  Bb5 {[%clk 0:01:51]} 23. Bxb5 {[%clk 0:01:54]}  axb5 {[%clk 0:01:52]} 24. Rxb5 {[%clk 0:01:54]}  O-O {[%clk 0:01:51]} 25. Rb7 {[%clk 0:01:49]}  Rfc8 {[%clk 0:01:48]} 26. f5 {[%clk 0:01:44]}  exf5 {[%clk 0:01:27]} 27. Nf4 {[%clk 0:01:43]}  Bxd4 {[%clk 0:01:22]} 28. cxd4 {[%clk 0:01:28]}  Rd8 {[%clk 0:00:59]} 29. Nxd5 {[%clk 0:01:26]}  Qe6 {[%clk 0:00:52]} 30. Rxd7 {[%clk 0:01:01]}  Rxd7 {[%clk 0:00:50]} 31. Nf6+ {[%clk 0:01:01]}  Kg7 {[%clk 0:00:48]} 32. d5 {[%clk 0:00:58]}  Rad8 {[%clk 0:00:20]} 33. dxe6 {[%clk 0:00:45]}  Rxd2 {[%clk 0:00:18]} 34. e7 {[%clk 0:00:45]}  Rd1 {[%clk 0:00:17]} 35. Kg1 {[%clk 0:00:45]}  Rxf1+ {[%clk 0:00:13]} 36. Kxf1 {[%clk 0:00:45]}  Ra8 {[%clk 0:00:14]} 37. e8=R {[%clk 0:00:40]}  Rxe8 {[%clk 0:00:15]} 38. Nxe8+ {[%clk 0:00:40]}  Kf8 {[%clk 0:00:15]} 39. Nc7 {[%clk 0:00:33]}  Ke7 {[%clk 0:00:14]} 40. Kf2 {[%clk 0:00:33]}  f6 {[%clk 0:00:14]} 41. exf6+ {[%clk 0:00:30]}  Kxf6 {[%clk 0:00:15]} 42. Kf3 {[%clk 0:00:29]}  g5 {[%clk 0:00:14]} 43. Nd5+ {[%clk 0:00:28]}  Ke5 {[%clk 0:00:14]} 44. Nb4 {[%clk 0:00:26]}  f4 {[%clk 0:00:13]} 45. Nc6+ {[%clk 0:00:21]}  Kf5 {[%clk 0:00:12]} 46. Ne7+ {[%clk 0:00:22]}  Ke6 {[%clk 0:00:12]} 47. Nc8 {[%clk 0:00:21]}  Kf5 {[%clk 0:00:11]} 48. Nd6+ {[%clk 0:00:13]}  Ke5 {[%clk 0:00:10]} 49. Nc4+ {[%clk 0:00:13]}  Kf5 {[%clk 0:00:09]} 50. Kf2 {[%clk 0:00:12]}  g4 {[%clk 0:00:09]} 51. Nb2 {[%clk 0:00:11]}  h4 {[%clk 0:00:09]} 52. h3 {[%clk 0:00:10]}  Kg5 {[%clk 0:00:06]} 53. Nd3 {[%clk 0:00:10]}  Kf5 {[%clk 0:00:02]} 54. Nc5 {[%clk 0:00:10]}  Kg5 {[%clk 0:00:01]} 55. Ne6+ {[%clk 0:00:10]}  Kf5 {[%clk 0:00:02]} 56. Nd4+ {[%clk 0:00:10]}  Kg5 {[%clk 0:00:02]} 57. Ne2 {[%clk 0:00:09]}  Kf5 {[%clk 0:00:02]} 58. Nc3 {[%clk 0:00:09]}  Kg5 {[%clk 0:00:02]} 59. Ne4+ {[%clk 0:00:09]}  Kf5 {[%clk 0:00:03]} 60. Nc5 {[%clk 0:00:09]}  Kg5 {[%clk 0:00:03]} 61. Nd7 {[%clk 0:00:09]}  Kf5 {[%clk 0:00:03]} 62. Nf8 {[%clk 0:00:09]}  Kg5 {[%clk 0:00:02]} 63. Nh7+ {[%clk 0:00:07]}  Kf5 {[%clk 0:00:03]} 64. Nf8 {[%clk 0:00:07]}  Kg5 {[%clk 0:00:03]} 65. hxg4 {[%clk 0:00:07]}  Kxg4 {[%clk 0:00:01]} 66. Nh7 {[%clk 0:00:07]}  h3 {[%clk 0:00:01]} 67. Nf6+ {[%clk 0:00:08]} 1-0


[Site "https://www.chess.com"]

[Event "Titled Tuesday Blitz January 17 Late 2023"]
[White "TheKnightOfBosnia"]
[Black "Kaganskiy, Gleb"]
[BlackFideId "4132025"]
[WhiteElo "2530"]
[BlackElo "2205"]
[Result "1-0"]
[Round "09"]
[TimeControl "180+2"]
[Date "2023.01.17"]
[WhiteClock "0:01:30"]
[BlackClock "0:00:45"]

1. e4 {[%clk 0:03:00]}  e6 {[%clk 0:03:00]} 2. d4 {[%clk 0:03:00]}  d5 {[%clk 0:03:00]} 3. Nd2 {[%clk 0:03:01]}  c5 {[%clk 0:03:00]} 4. Ngf3 {[%clk 0:03:01]}  cxd4 {[%clk 0:02:59]} 5. exd5 {[%clk 0:03:01]}  Qxd5 {[%clk 0:02:58]} 6. Bc4 {[%clk 0:03:01]}  Qd6 {[%clk 0:02:58]} 7. O-O {[%clk 0:03:02]}  Nc6 {[%clk 0:02:58]} 8. Nb3 {[%clk 0:03:03]}  Nf6 {[%clk 0:02:57]} 9. Nbxd4 {[%clk 0:03:03]}  Nxd4 {[%clk 0:02:57]} 10. Nxd4 {[%clk 0:03:04]}  Be7 {[%clk 0:02:57]} 11. Re1 {[%clk 0:03:00]}  O-O {[%clk 0:02:55]} 12. c3 {[%clk 0:02:58]}  Qc7 {[%clk 0:02:42]} 13. Qe2 {[%clk 0:02:58]}  a6 {[%clk 0:02:22]} 14. a4 {[%clk 0:02:57]}  b6 {[%clk 0:02:20]} 15. Bg5 {[%clk 0:02:47]}  h6 {[%clk 0:02:15]} 16. Bh4 {[%clk 0:02:45]}  Rd8 {[%clk 0:01:51]} 17. Bxe6 {[%clk 0:02:24]}  fxe6 {[%clk 0:01:48]} 18. Nxe6 {[%clk 0:02:24]}  Bxe6 {[%clk 0:01:43]} 19. Qxe6+ {[%clk 0:02:25]}  Kf8 {[%clk 0:01:44]} 20. Bg3 {[%clk 0:02:09]}  Qd7 {[%clk 0:01:43]} 21. Qxb6 {[%clk 0:02:09]}  Bd6 {[%clk 0:01:36]} 22. Rad1 {[%clk 0:02:03]}  Bxg3 {[%clk 0:01:21]} 23. Rxd7 {[%clk 0:02:01]}  Bxf2+ {[%clk 0:01:09]} 24. Qxf2 {[%clk 0:02:00]}  Rxd7 {[%clk 0:01:09]} 25. h3 {[%clk 0:01:56]}  Rad8 {[%clk 0:01:09]} 26. Re6 {[%clk 0:01:53]}  Kg8 {[%clk 0:01:08]} 27. Rxa6 {[%clk 0:01:51]}  Rd2 {[%clk 0:01:07]} 28. Qf3 {[%clk 0:01:38]}  Rxb2 {[%clk 0:00:59]} 29. Ra8 {[%clk 0:01:38]}  Rd2 {[%clk 0:00:52]} 30. Rxd8+ {[%clk 0:01:36]}  Rxd8 {[%clk 0:00:53]} 31. a5 {[%clk 0:01:36]}  Nd5 {[%clk 0:00:48]} 32. c4 {[%clk 0:01:34]}  Nb4 {[%clk 0:00:47]} 33. c5 {[%clk 0:01:30]}  Rf8 {[%clk 0:00:46]} 34. Qb3+ {[%clk 0:01:29]}  Rf7 {[%clk 0:00:45]} 35. Qxb4 {[%clk 0:01:30]} 1-0


[Site "https://www.chess.com"]

[Event "Titled Tuesday Blitz January 17 Late 2023"]
[White "Kostiukov, Alexandr"]
[Black "Ansh M Shah"]
[WhiteFideId "14108100"]
[BlackFideId "25033379"]
[WhiteElo "2271"]
[BlackElo "2171"]
[Result "1-0"]
[Round "09"]
[TimeControl "180+2"]
[Date "2023.01.17"]
[WhiteClock "0:00:06"]
[BlackClock "0:00:10"]

1. g3 {[%clk 0:02:56]}  Nf6 {[%clk 0:02:59]} 2. Bg2 {[%clk 0:02:56]}  e6 {[%clk 0:02:58]} 3. d3 {[%clk 0:02:56]}  d5 {[%clk 0:02:58]} 4. e4 {[%clk 0:02:56]}  dxe4 {[%clk 0:02:58]} 5. dxe4 {[%clk 0:02:57]}  Qxd1+ {[%clk 0:02:58]} 6. Kxd1 {[%clk 0:02:58]}  Bc5 {[%clk 0:02:54]} 7. f3 {[%clk 0:02:58]}  b6 {[%clk 0:02:52]} 8. Nd2 {[%clk 0:02:57]}  Bb7 {[%clk 0:02:51]} 9. Nb3 {[%clk 0:02:55]}  Be7 {[%clk 0:02:51]} 10. Be3 {[%clk 0:02:55]}  c5 {[%clk 0:02:50]} 11. Nd2 {[%clk 0:02:54]}  Nc6 {[%clk 0:02:45]} 12. c3 {[%clk 0:02:54]}  O-O-O {[%clk 0:02:40]} 13. Kc2 {[%clk 0:02:54]}  Ne5 {[%clk 0:02:39]} 14. Nh3 {[%clk 0:02:49]}  h6 {[%clk 0:02:33]} 15. Nf2 {[%clk 0:02:47]}  Ba6 {[%clk 0:02:25]} 16. Bf1 {[%clk 0:02:47]}  Bb7 {[%clk 0:01:50]} 17. Bg2 {[%clk 0:02:37]}  Ba6 {[%clk 0:01:48]} 18. Bf1 {[%clk 0:02:36]}  Bxf1 {[%clk 0:01:46]} 19. Rhxf1 {[%clk 0:02:35]}  Rd7 {[%clk 0:01:46]} 20. h3 {[%clk 0:02:15]}  Rhd8 {[%clk 0:01:43]} 21. f4 {[%clk 0:02:11]}  Nc6 {[%clk 0:01:36]} 22. Nc4 {[%clk 0:02:02]}  Nh5 {[%clk 0:01:16]} 23. Rg1 {[%clk 0:01:56]}  Nf6 {[%clk 0:01:16]} 24. a4 {[%clk 0:01:54]}  Kc7 {[%clk 0:01:11]} 25. g4 {[%clk 0:01:45]}  Ne8 {[%clk 0:01:09]} 26. Rgd1 {[%clk 0:01:40]}  Rxd1 {[%clk 0:01:07]} 27. Nxd1 {[%clk 0:01:39]}  Nd6 {[%clk 0:01:06]} 28. Nxd6 {[%clk 0:01:29]}  Bxd6 {[%clk 0:01:07]} 29. Nf2 {[%clk 0:01:25]}  Na5 {[%clk 0:00:59]} 30. b3 {[%clk 0:01:20]}  Nc6 {[%clk 0:00:53]} 31. Rd1 {[%clk 0:01:13]}  Be7 {[%clk 0:00:52]} 32. Rg1 {[%clk 0:01:06]}  Bh4 {[%clk 0:00:47]} 33. Nd3 {[%clk 0:01:06]}  Rd7 {[%clk 0:00:23]} 34. g5 {[%clk 0:00:56]}  hxg5 {[%clk 0:00:17]} 35. fxg5 {[%clk 0:00:56]}  g6 {[%clk 0:00:13]} 36. Bf4+ {[%clk 0:00:37]}  e5 {[%clk 0:00:10]} 37. Nxe5 {[%clk 0:00:19]}  Nxe5 {[%clk 0:00:09]} 38. Bxe5+ {[%clk 0:00:20]}  Kc6 {[%clk 0:00:09]} 39. Bf6 {[%clk 0:00:15]}  Bf2 {[%clk 0:00:06]} 40. Rg2 {[%clk 0:00:14]}  Be3 {[%clk 0:00:06]} 41. Re2 {[%clk 0:00:13]}  Bf4 {[%clk 0:00:07]} 42. b4 {[%clk 0:00:14]}  cxb4 {[%clk 0:00:07]} 43. cxb4 {[%clk 0:00:15]}  b5 {[%clk 0:00:04]} 44. a5 {[%clk 0:00:13]}  Bd6 {[%clk 0:00:03]} 45. Kc3 {[%clk 0:00:11]}  Rc7 {[%clk 0:00:03]} 46. e5 {[%clk 0:00:11]}  Kd7+ {[%clk 0:00:04]} 47. Kb3 {[%clk 0:00:10]}  Be7 {[%clk 0:00:04]} 48. Rd2+ {[%clk 0:00:08]}  Ke6 {[%clk 0:00:04]} 49. Re2 {[%clk 0:00:03]}  Bxf6 {[%clk 0:00:01]} 50. exf6+ {[%clk 0:00:04]}  Kf5 {[%clk 0:00:02]} 51. Rg2 {[%clk 0:00:03]}  Rd7 {[%clk 0:00:01]} 52. Kc3 {[%clk 0:00:03]}  Rc7+ {[%clk 0:00:01]} 53. Kd4 {[%clk 0:00:03]}  Rd7+ {[%clk 0:00:02]} 54. Kc5 {[%clk 0:00:03]}  a6 {[%clk 0:00:03]} 55. Kb6 {[%clk 0:00:04]}  Rd6+ {[%clk 0:00:03]} 56. Kc7 {[%clk 0:00:04]}  Re6 {[%clk 0:00:04]} 57. h4 {[%clk 0:00:02]}  Re4 {[%clk 0:00:04]} 58. Kb7 {[%clk 0:00:02]}  Rxb4 {[%clk 0:00:05]} 59. Kxa6 {[%clk 0:00:03]}  Rxh4 {[%clk 0:00:05]} 60. Kb7 {[%clk 0:00:02]}  Ra4 {[%clk 0:00:05]} 61. a6 {[%clk 0:00:02]}  b4 {[%clk 0:00:05]} 62. a7 {[%clk 0:00:03]}  b3 {[%clk 0:00:05]} 63. a8=Q {[%clk 0:00:03]}  Rxa8 {[%clk 0:00:06]} 64. Kxa8 {[%clk 0:00:04]}  b2 {[%clk 0:00:04]} 65. Rxb2 {[%clk 0:00:04]}  Kxg5 {[%clk 0:00:05]} 66. Rf2 {[%clk 0:00:05]}  Kh4 {[%clk 0:00:05]} 67. Kb7 {[%clk 0:00:06]}  g5 {[%clk 0:00:05]} 68. Kc6 {[%clk 0:00:06]}  g4 {[%clk 0:00:06]} 69. Kd7 {[%clk 0:00:05]}  g3 {[%clk 0:00:07]} 70. Ra2 {[%clk 0:00:04]}  Kg5 {[%clk 0:00:07]} 71. Ke7 {[%clk 0:00:04]}  Kg6 {[%clk 0:00:07]} 72. Rg2 {[%clk 0:00:04]}  Kf5 {[%clk 0:00:06]} 73. Rxg3 {[%clk 0:00:04]}  Ke5 {[%clk 0:00:07]} 74. Rg7 {[%clk 0:00:04]}  Kf5 {[%clk 0:00:07]} 75. Rxf7 {[%clk 0:00:05]}  Kg6 {[%clk 0:00:08]} 76. Rf8 {[%clk 0:00:06]}  Kh7 {[%clk 0:00:08]} 77. Ra8 {[%clk 0:00:05]}  Kg6 {[%clk 0:00:08]} 78. f7 {[%clk 0:00:06]}  Kf5 {[%clk 0:00:08]} 79. f8=Q+ {[%clk 0:00:06]}  Kg6 {[%clk 0:00:09]} 80. Ra6+ {[%clk 0:00:06]}  Kh5 {[%clk 0:00:08]} 81. Qf5+ {[%clk 0:00:06]}  Kh4 {[%clk 0:00:08]} 82. Rh6+ {[%clk 0:00:05]}  Kg3 {[%clk 0:00:08]} 83. Rh3+ {[%clk 0:00:05]}  Kg2 {[%clk 0:00:09]} 84. Qf3+ {[%clk 0:00:05]}  Kg1 {[%clk 0:00:10]} 85. Rh1# {[%clk 0:00:06]} 1-0


[Site "https://www.chess.com"]